bitfinex/quotes_SOLUSD_20250204
["timestamp","ask_amount","ask_price","bid_price","bid_amount"]
[1738680624956,10.1789,214.65,214.58,37.81113247]
[1738680625156,13.53733853,214.59,214.43,4.6635]
[1738680625358,0.12549,214.57,214.49,37.81113247]
[1738680625544,0.12549,214.55,214.47,37.81113247]
[1738680625739,37.81113247,214.56,214.47,37.81113247]
[1738680625972,0.25098,214.57,214.49,37.81113247]
[1738680626479,51.222981,214.58,214.49,37.81113247]
[1738680626480,42.47183247,214.56,214.49,37.81113247]
[1738680626772,37.81113247,214.67,214.54,37.81113247]
[1738680626969,37.81113247,214.67,214.5,38.18760247]
[1738680626970,37.81113247,214.71,214.62,37.81113247]
[1738680627175,37.81113247,214.69,214.62,37.81113247]
[1738680627365,20.0,214.63,214.51,37.81113247]
[1738680627571,13.91380853,214.62,214.51,37.81113247]
[1738680627774,0.25098,214.56,214.47,37.81113247]
[1738680628087,0.12549,214.52,214.45,37.81113247]
[1738680628590,4.6612,214.54,214.49,37.81113247]
[1738680628752,37.81113247,214.57,214.49,37.81113247]
[1738680628959,122.7595,214.62,214.55,37.81113247]
[1738680629287,13.53733853,214.61,214.54,37.81113247]
[1738680629483,13.53733853,214.61,214.56,37.81113247]
[1738680629663,37.81113247,214.65,214.56,37.81113247]
[1738680629862,4.6585,214.66,214.6,37.81113247]
[1738680630065,122.7582,214.68,214.64,37.81113247]
[1738680630268,0.12549,214.67,214.62,37.81113247]
[1738680630467,0.12549,214.67,214.5,37.81113247]
[1738680630468,58.06211247,214.65,214.58,37.81113247]
[1738680630675,58.06211247,214.65,214.5,37.81113247]
[1738680630676,0.12549,214.62,214.55,37.81113247]
[1738680630987,4.6589,214.64,214.57,37.81113247]
[1738680631288,13.53733853,214.63,214.58,37.81113247]
[1738680631586,4.6561,214.77,214.65,20.0]
[1738680631786,1.03,214.84,214.74,37.81113247]
[1738680631787,42.46643247,214.81,214.74,37.81113247]
[1738680631987,0.063,214.75,214.72,37.81113247]
[1738680632161,0.063,214.75,214.68,37.81113247]
[1738680632358,33.53733853,214.73,214.66,37.81113247]
[1738680632558,20.0,214.73,214.68,37.81113247]
[1738680632765,0.063,214.75,214.71,37.81113247]
[1738680632996,0.063,214.75,214.74,37.81113247]
[1738680633673,0.063,214.75,214.7,37.81113247]
[1738680634178,33.91380853,214.73,214.66,37.81113247]
[1738680634564,13.53733853,214.71,214.66,37.81113247]
[1738680635164,13.53733853,214.71,214.64,37.81113247]
[1738680635361,0.12549,214.66,214.62,37.81113247]
[1738680635599,0.12549,214.64,214.57,37.81113247]
[1738680636004,118.1,214.73,214.63,37.81113247]
[1738680636175,42.46833247,214.72,214.65,37.81113247]
[1738680636375,0.12549,214.68,214.65,37.81113247]
[1738680636607,0.12549,214.65,214.61,37.81113247]
[1738680636775,0.12549,214.65,214.59,37.81113247]
[1738680636970,13.41184853,214.64,214.57,37.81113247]
[1738680637175,13.41184853,214.65,214.59,37.81113247]
[1738680637389,4.6585,214.66,214.59,37.81113247]
[1738680637586,13.53733853,214.6,214.53,37.81113247]
[1738680638104,0.12549,214.56,214.49,37.81113247]
[1738680638405,20.50196,214.52,214.47,37.81113247]
[1738680638618,156.03662247,214.52,214.45,0.03]
[1738680638782,118.1,214.52,214.48,37.81113247]
[1738680639100,0.12549,214.51,214.46,37.81113247]
[1738680639322,0.12549,214.48,214.45,0.03]
[1738680639479,13.53733853,214.49,214.45,0.03]
[1738680639802,118.1,214.52,214.46,37.81113247]
[1738680639984,122.7616,214.52,214.45,0.03]
[1738680640185,0.12549,214.47,214.45,0.03]
[1738680640485,20.0,214.48,214.45,0.03]
[1738680640688,13.53733853,214.47,214.45,0.03]
[1738680641402,118.1,214.5,214.46,37.81113247]
[1738680641618,0.12549,214.49,214.48,37.81113247]
[1738680641781,0.50196,214.46,214.45,0.03]
[1738680642125,51.724941,214.46,214.45,0.03]
[1738680642286,20.25098,214.37,214.31,37.81113247]
[1738680642488,13.66282853,214.37,214.29,37.84113247]
[1738680642692,13.53733853,214.34,214.29,37.84113247]
[1738680642889,13.66282853,214.34,214.29,37.84113247]
[1738680643096,13.91380853,214.34,214.29,0.03]
[1738680643289,0.12549,214.34,214.29,0.03]
[1738680643489,123.54,214.4,214.33,37.84113247]
[1738680643790,0.12549,214.35,214.33,0.03]
[1738680643988,33.53733853,214.34,214.33,0.03]
[1738680644385,4.6643,214.39,214.33,37.84113247]
[1738680644591,4.6643,214.39,214.33,0.03]
[1738680644998,58.31309247,214.34,214.33,0.03]
[1738680645200,0.12549,214.31,214.29,0.03]
[1738680645802,0.12549,214.32,214.29,0.03]
[1738680646003,33.66282853,214.3,214.29,0.03]
[1738680646390,33.91380853,214.3,214.29,0.03]
[1738680646610,152.01380853,214.3,214.29,0.0001]
[1738680646841,153.01380853,214.3,214.29,0.0001]
[1738680647116,0.12549,214.23,214.15,37.84113247]
[1738680647332,37.81113247,214.23,214.15,37.84113247]
[1738680647616,13.66282853,214.22,214.15,37.84113247]
[1738680647819,13.53733853,214.18,214.15,0.03]
[1738680648396,57.81113247,214.21,214.15,0.03]
[1738680648804,33.53733853,214.16,214.15,0.03]
[1738680649006,20.0,214.16,214.15,0.03]
[1738680649223,33.91380853,214.16,214.15,0.03]
[1738680649888,37.81113247,214.19,214.15,0.03]
[1738680650212,13.66282853,214.22,214.15,37.84113247]
[1738680650391,174.59663347,214.29,214.19,37.81113247]
[1738680650617,18.685501,214.29,214.25,37.81113247]
[1738680650803,13.91380853,214.32,214.27,37.81113247]
[1738680651104,43.21113247,214.34,214.19,37.81113247]
[1738680651105,0.12549,214.25,214.19,37.81113247]
[1738680651306,0.12549,214.24,214.19,37.81113247]
[1738680651509,0.25098,214.27,214.19,37.81113247]
[1738680651707,20.0,214.25,214.19,37.81113247]
[1738680651924,0.12549,214.24,214.19,37.81113247]
[1738680652121,13.41184853,214.27,214.23,37.81113247]
[1738680652323,10.0665,214.29,214.22,37.81113247]
[1738680652549,13.91380853,214.25,214.18,37.81113247]
[1738680652731,0.12549,214.22,214.16,37.81113247]
[1738680652923,0.12549,214.19,214.15,0.03]
[1738680653321,118.1,214.24,214.15,0.03]
[1738680653322,4.6676,214.25,214.18,37.81113247]
[1738680653618,4.6666,214.29,214.23,37.81113247]
[1738680654014,37.81113247,214.32,214.23,37.81113247]
[1738680654202,13.66282853,214.25,214.19,37.81113247]
[1738680654407,0.12549,214.2,214.15,0.03]
[1738680654643,0.12549,214.18,214.15,0.03]
[1738680654930,0.25098,214.18,214.15,0.03]
[1738680655139,20.0,214.19,214.15,0.03]
[1738680655430,13.53733853,214.18,214.15,0.03]
[1738680655603,33.53733853,214.16,214.15,0.03]
[1738680656013,33.53733853,214.16,214.07,37.84113247]
[1738680656014,20.0,214.12,214.07,37.84113247]
[1738680656232,20.12549,214.11,214.07,0.03]
[1738680656542,0.12549,214.09,214.07,0.03]
[1738680657241,33.66282853,214.08,214.07,0.03]
[1738680657409,37.81113247,214.15,214.07,37.84113247]
[1738680657614,37.81113247,214.13,214.07,0.03]
[1738680657843,20.0,214.1,214.07,0.03]
[1738680658043,4.6693,214.17,214.09,37.81113247]
[1738680658249,47.87983247,214.19,214.12,37.81113247]
[1738680658420,13.91380853,214.16,214.1,37.81113247]
[1738680658743,13.53733853,214.16,214.08,37.81113247]
[1738680658951,13.53733853,214.16,214.12,37.81113247]
[1738680659114,0.12549,214.16,214.12,37.81113247]
[1738680659313,0.12549,214.16,214.1,37.81113247]
[1738680659759,0.12549,214.14,214.1,37.81113247]
[1738680660557,13.53733853,214.11,214.07,0.03]
[1738680660734,0.12549,214.11,214.07,0.03]
[1738680660932,0.12549,214.09,214.07,0.03]
[1738680661125,18.20843853,214.08,214.07,0.03]
[1738680661323,0.12549,214.03,213.95,37.81113247]
[1738680661521,13.53733853,214.0,213.93,42.51533247]
[1738680661743,37.81113247,213.99,213.93,0.03]
[1738680662055,20.12549,213.98,213.93,37.84113247]
[1738680662365,5.36,214.02,213.97,37.81113247]
[1738680662519,5.36,214.02,213.98,37.81113247]
[1738680662860,0.12549,213.98,213.93,0.03]
[1738680663031,0.25098,213.98,213.93,0.03]
[1738680663350,0.12549,213.95,213.93,0.03]
[1738680663530,13.66282853,213.95,213.93,0.03]
[1738680663862,0.25098,213.95,213.93,0.03]
[1738680664220,33.78831853,213.94,213.93,0.03]
[1738680664545,33.91380853,213.94,213.93,0.03]
[1738680665228,33.91380853,213.94,213.9,0.03]
[1738680665229,155.4597,213.94,213.9,0.03]
[1738680665432,0.12549,213.83,213.77,37.81113247]
[1738680665638,0.12549,213.81,213.75,37.81113247]
[1738680665840,37.81113247,213.83,213.75,37.81113247]
[1738680666173,5.34,213.96,213.81,37.81113247]
[1738680666340,5.34,213.96,213.9,37.81113247]
[1738680666535,51.724941,213.95,213.88,37.81113247]
[1738680666736,0.12549,213.95,213.9,37.81113247]
[1738680666938,37.81113247,214.03,213.94,37.81113247]
[1738680667279,47.84253247,214.07,214.0,37.81113247]
[1738680667574,37.81113247,214.09,214.02,37.81113247]
[1738680667758,37.81113247,214.08,214.0,37.81113247]
[1738680667947,37.81113247,214.12,214.04,37.81113247]
[1738680668149,20.0,214.07,214.02,37.81113247]
[1738680668363,0.12549,214.05,213.98,37.81113247]
[1738680668739,37.81113247,214.18,214.02,1.37647]
[1738680668934,37.81113247,214.2,214.11,37.81113247]
[1738680669166,37.81113247,214.15,214.02,4.6724]
[1738680669365,37.81113247,214.11,214.03,37.81113247]
[1738680669572,0.12549,214.07,214.01,37.81113247]
[1738680669748,0.12549,214.07,214.03,37.81113247]
[1738680669962,0.12549,214.07,213.99,37.81113247]
[1738680670267,0.12549,214.07,214.03,37.81113247]
[1738680670452,118.1,214.16,214.05,37.81113247]
[1738680670650,42.48033247,214.17,214.08,37.81113247]
[1738680670651,37.81113247,214.15,214.08,37.81113247]
[1738680670875,0.12549,214.08,214.02,37.81113247]
[1738680671068,0.12549,214.08,213.99,37.81113247]
[1738680671069,13.53733853,214.06,213.99,37.81113247]
[1738680671238,37.81113247,214.09,214.01,37.81113247]
[1738680671442,0.063,214.1,214.08,37.81113247]
[1738680672063,0.063,214.1,214.09,0.70037336]
[1738680672370,0.063,214.1,214.08,37.81113247]
[1738680672757,0.063,214.1,214.06,37.81113247]
[1738680672966,0.063,214.1,214.08,37.81113247]
[1738680673567,0.063,214.1,214.08,42.48213247]
[1738680674045,0.063,214.1,214.08,37.81113247]
[1738680674477,0.063,214.1,214.09,0.37647]
[1738680674773,0.063,214.1,214.09,0.70032075]
[1738680674955,0.063,214.1,214.09,13.78831853]
[1738680675156,60.1279,214.23,214.17,37.81113247]
[1738680675357,20.0,214.2,214.17,37.81113247]
[1738680675664,20.0,214.16,214.09,37.81113247]
[1738680675969,20.0,214.16,214.02,6.37292122]
[1738680675970,20.0,214.16,214.11,37.81113247]
[1738680676142,13.91380853,214.15,214.09,37.81113247]
[1738680676346,0.12549,214.12,214.05,37.81113247]
[1738680676547,37.81113247,214.14,214.07,37.81113247]
[1738680676775,37.81113247,214.14,214.05,37.81113247]
[1738680676776,0.50196,214.12,214.05,37.81113247]
[1738680676978,0.12549,214.1,214.05,37.81113247]
[1738680677177,33.53733853,214.07,214.01,37.81113247]
[1738680677470,20.12549,214.07,214.01,37.81113247]
[1738680677856,20.12549,214.07,213.93,12.272]
[1738680677857,0.12549,214.03,213.97,37.81113247]
[1738680678061,0.25098,213.99,213.93,0.03]
[1738680678251,0.25098,213.97,213.93,0.03]
[1738680678453,0.50196,213.94,213.93,0.03]
[1738680678666,57.044941,213.94,213.93,0.03]
[1738680678876,57.044941,213.94,213.83,37.81113247]
[1738680678877,13.41184853,213.89,213.79,37.81113247]
[1738680679078,13.53733853,213.86,213.79,37.81113247]
[1738680679256,0.12549,213.86,213.79,37.81113247]
[1738680679455,155.91113247,213.99,213.85,37.81113247]
[1738680679676,122.773,214.0,213.93,37.81113247]
[1738680679887,13.91380853,213.99,213.93,37.81113247]
[1738680680069,0.12549,213.99,213.93,37.81113247]
[1738680680261,43.15113247,214.05,213.97,37.81113247]
[1738680680460,47.82293247,214.05,213.97,37.81113247]
[1738680680673,0.12549,213.97,213.89,37.81113247]
[1738680680881,0.12549,213.95,213.89,37.81113247]
[1738680681108,20.0,213.98,213.91,37.81113247]
[1738680681389,0.25098,213.99,213.83,37.81113247]
[1738680681390,0.12549,213.9,213.83,37.81113247]
[1738680681757,37.93662247,213.9,213.81,37.81113247]
[1738680681956,118.1,213.95,213.85,37.81113247]
[1738680681957,20.0,213.91,213.85,37.81113247]
[1738680682156,0.12549,213.88,213.83,37.81113247]
[1738680682560,0.25098,213.84,213.77,37.81113247]
[1738680682891,118.1,213.88,213.81,37.81113247]
[1738680683066,118.1,213.88,213.85,37.81113247]
[1738680683252,33.53733853,213.9,213.85,37.81113247]
[1738680683458,71.724941,213.9,213.81,37.81113247]
[1738680683758,0.12549,213.83,213.77,37.81113247]
[1738680683973,0.25098,213.81,213.75,37.81113247]
[1738680684179,0.12549,213.81,213.73,37.81113247]
[1738680684466,0.12549,213.77,213.73,37.81113247]
[1738680684693,0.12549,213.75,213.71,0.03]
[1738680685069,13.53733853,213.72,213.71,0.03]
[1738680685268,0.12549,213.72,213.71,0.03]
[1738680685790,37.81113247,213.76,213.71,0.03]
[1738680685987,38.81113247,213.84,213.71,0.03]
[1738680685988,20.0,213.75,213.71,0.03]
[1738680686190,33.53733853,213.74,213.71,0.03]
[1738680686398,38.31309247,213.72,213.71,0.03]
[1738680686901,37.81113247,213.76,213.71,0.03]
[1738680687100,4.6777,213.78,213.71,0.03]
[1738680687101,42.48883247,213.78,213.71,0.03]
[1738680687398,13.53733853,213.72,213.71,0.03]
[1738680687561,51.724941,213.72,213.71,0.03]
[1738680687761,4.6784,213.75,213.71,0.03]
[1738680688064,0.12549,213.74,213.71,0.03]
[1738680688284,37.81113247,213.78,213.71,37.84113247]
[1738680688505,42.48793247,213.82,213.73,37.81113247]
[1738680689092,118.1,213.83,213.77,37.81113247]
[1738680689293,10.0153,213.89,213.81,37.81113247]
[1738680689498,37.81113247,213.94,213.86,37.81113247]
[1738680689720,42.48533247,213.94,213.86,37.81113247]
[1738680689913,42.48503247,213.96,213.88,37.81113247]
[1738680690118,55.48,213.97,213.9,37.81113247]
[1738680690424,37.81113247,214.04,213.96,37.81113247]
[1738680690715,5.34,214.09,214.02,37.81113247]
[1738680691104,20.0,214.06,214.0,37.81113247]
[1738680691299,37.81113247,214.07,214.0,37.81113247]
[1738680691507,0.063,214.1,214.06,37.81113247]
[1738680691809,0.063,214.1,213.97,1.0]
[1738680691810,0.063,214.1,214.08,37.81113247]
[1738680692702,0.063,214.1,214.08,38.81113247]
[1738680692899,0.063,214.1,214.08,37.81113247]
[1738680693221,0.063,214.1,214.09,16.61422923]
[1738680693397,37.81113247,214.27,214.12,22.0]
[1738680693721,37.81113247,214.29,214.21,37.81113247]
[1738680693893,0.063,214.3,214.23,37.81113247]
[1738680694091,0.063,214.3,214.25,37.81113247]
[1738680694324,37.81113247,214.26,214.19,37.81113247]
[1738680694500,37.81113247,214.28,214.19,37.81113247]
[1738680694707,37.81113247,214.24,214.16,37.81113247]
[1738680694891,37.81113247,214.24,214.18,37.81113247]
[1738680694892,0.12549,214.24,214.18,37.81113247]
[1738680695089,118.1,214.29,214.22,37.81113247]
[1738680695294,37.81113247,214.28,214.18,37.81113247]
[1738680695532,0.12549,214.25,214.18,37.81113247]
[1738680695696,0.50196,214.2,214.14,37.81113247]
[1738680695896,0.12549,214.14,214.08,0.03]
[1738680696232,0.063,214.1,214.08,0.03]
[1738680697101,0.12549,214.09,214.08,0.03]
[1738680697420,0.063,214.1,214.08,0.03]
[1738680697809,38.18760247,214.09,214.08,0.03]
[1738680698007,51.599451,214.09,214.08,0.03]
[1738680698321,51.724941,214.09,214.08,0.03]
[1738680698515,0.12549,214.09,214.08,0.03]
[1738680698712,0.063,214.1,214.08,0.03]
[1738680698917,0.063,214.1,214.08,37.84113247]
[1738680699220,0.18849,214.1,214.08,0.03]
[1738680699406,13.91380853,214.09,214.08,0.03]
[1738680699730,13.91380853,214.05,213.96,37.81113247]
[1738680699916,51.724941,214.01,213.92,37.81113247]
[1738680700121,51.724941,214.01,213.94,37.81113247]
[1738680700424,51.724941,214.01,213.92,37.81113247]
[1738680700638,20.0,214.0,213.94,37.81113247]
[1738680700798,0.12549,214.01,213.94,37.81113247]
[1738680701000,5.3,214.03,213.96,37.81113247]
[1738680701205,13.91380853,213.97,213.88,37.81113247]
[1738680701408,0.12549,213.94,213.88,37.81113247]
[1738680701634,13.78831853,213.93,213.86,0.03]
[1738680702008,16.3581,213.96,213.86,0.03]
[1738680702009,37.81113247,213.92,213.86,0.03]
[1738680702231,42.48483247,213.96,213.87,37.81113247]
[1738680702531,129.7779,214.08,213.95,37.81113247]
[1738680702703,37.81113247,214.06,213.98,37.81113247]
[1738680703034,13.53733853,214.05,213.99,37.81113247]
[1738680703543,0.12549,214.01,213.93,37.81113247]
[1738680703722,0.12549,214.01,213.95,37.81113247]
[1738680703923,0.12549,213.96,213.89,37.81113247]
[1738680704834,37.81113247,213.98,213.89,37.81113247]
[1738680705012,4.672,214.04,213.96,37.81113247]
[1738680705218,37.87413247,214.1,214.02,37.81113247]
[1738680705416,4.7338,214.1,214.02,37.81113247]
[1738680705611,42.54493247,214.1,214.02,37.81113247]
[1738680705812,13.66282853,214.09,214.02,37.81113247]
[1738680706037,0.063,214.1,214.04,37.81113247]
[1738680706239,0.063,214.1,214.06,37.81113247]
[1738680706957,0.063,214.1,214.08,37.81113247]
[1738680707144,4.6709,214.09,214.04,37.81113247]
[1738680707307,0.12549,214.08,214.02,37.81113247]
[1738680707734,13.66282853,214.08,214.0,37.81113247]
[1738680707932,0.12549,214.04,213.98,37.81113247]
[1738680708218,0.12549,214.04,213.92,4.6744]
[1738680708219,0.12549,214.02,213.94,37.81113247]
[1738680708530,0.12549,213.99,213.92,37.81113247]
[1738680708840,13.66282853,213.99,213.92,37.81113247]
[1738680709027,20.12549,213.99,213.92,37.81113247]
[1738680709228,5.26,214.02,213.98,37.81113247]
[1738680709418,4.92358,214.01,213.94,37.81113247]
[1738680709619,4.92358,214.01,213.92,37.81113247]
[1738680709620,0.12549,213.99,213.92,37.81113247]
[1738680709813,0.12549,213.96,213.9,37.81113247]
[1738680710023,0.12549,213.94,213.88,37.81113247]
[1738680710630,20.0,213.87,213.86,0.03]
[1738680710844,71.473961,213.87,213.86,0.03]
[1738680711046,0.12549,213.82,213.76,37.81113247]
[1738680711246,13.66282853,213.82,213.76,37.81113247]
[1738680711438,20.0,213.82,213.76,37.81113247]
[1738680711644,20.0,213.82,213.78,37.81113247]
[1738680711645,0.12549,213.81,213.78,37.81113247]
[1738680711825,0.12549,213.81,213.76,37.81113247]
[1738680712244,0.12549,213.81,213.71,0.03]
[1738680712245,0.50196,213.77,213.71,0.03]
[1738680712535,0.12549,213.77,213.71,0.03]
[1738680712845,4.6765,213.84,213.76,37.81113247]
[1738680713042,4.6761,213.86,213.79,37.81113247]
[1738680713465,37.81113247,213.87,213.79,37.81113247]
[1738680713668,5.24,213.89,213.85,37.81113247]
[1738680713830,9.9153,213.89,213.83,37.81113247]
[1738680714029,13.66282853,213.88,213.81,37.81113247]
[1738680714242,5.24,213.89,213.83,37.81113247]
[1738680714556,37.81113247,213.97,213.87,37.81113247]
[1738680714742,118.1,214.0,213.89,37.81113247]
[1738680714743,37.81113247,213.99,213.89,37.81113247]
[1738680714925,5.24,214.0,213.93,37.81113247]
[1738680715130,20.0,213.97,213.93,37.81113247]
[1738680715365,20.0,213.97,213.88,37.81113247]
[1738680715366,13.53733853,213.96,213.88,37.81113247]
[1738680715536,18.21113853,213.96,213.88,37.81113247]
[1738680715944,13.53733853,213.96,213.9,37.81113247]
[1738680716162,20.0,213.96,213.92,37.81113247]
[1738680716339,37.81113247,214.03,213.94,37.81113247]
[1738680716539,211.47413247,214.1,214.02,37.81113247]
[1738680716737,178.3338,214.1,214.04,37.81113247]
[1738680716934,55.563,214.1,214.08,37.81113247]
[1738680717164,55.563,214.1,214.04,37.81113247]
[1738680717644,98.04493247,214.1,214.02,37.81113247]
[1738680717974,13.66282853,214.09,214.02,37.81113247]
[1738680718176,0.063,214.1,214.08,37.81113247]
[1738680718362,0.063,214.1,214.0,37.81113247]
[1738680718363,37.81113247,214.09,214.0,37.81113247]
[1738680718683,0.12549,214.08,214.02,37.81113247]
[1738680718969,0.063,214.1,214.07,37.81113247]
[1738680719168,0.063,214.1,214.09,37.81113247]
[1738680719663,0.063,214.1,214.05,37.81113247]
[1738680719855,0.12549,214.09,214.03,37.81113247]
[1738680720065,20.0,214.06,213.98,37.81113247]
[1738680720557,20.0,214.06,213.9,6.37585028]
[1738680720558,20.0,214.06,214.02,37.81113247]
[1738680720741,20.0,214.06,214.0,37.81113247]
[1738680720936,0.063,214.1,214.04,37.81113247]
[1738680721142,37.81113247,214.05,213.97,37.81113247]
[1738680721447,0.25098,214.04,213.97,37.81113247]
[1738680721638,0.12549,214.02,213.97,37.81113247]
[1738680721839,5.24,214.06,214.01,37.81113247]
[1738680722038,5.24,214.06,213.92,30.89853853]
[1738680722039,20.0,214.03,213.92,4.6746]
[1738680722239,13.53733853,214.02,213.95,37.81113247]
[1738680722461,37.93662247,214.05,213.97,37.81113247]
[1738680722670,20.0,214.03,213.99,37.81113247]
[1738680722849,20.0,214.03,213.9,17.3626]
[1738680722850,13.53733853,214.02,213.95,37.81113247]
[1738680723055,51.348471,213.98,213.89,37.81113247]
[1738680723771,119.1,214.05,213.91,37.81113247]
[1738680723772,37.81113247,214.0,213.91,37.81113247]
[1738680723943,0.12549,213.99,213.91,37.81113247]
[1738680724137,43.05113247,214.06,213.97,37.81113247]
[1738680724340,4.7339,214.1,214.04,37.81113247]
[1738680724574,0.063,214.1,214.04,37.81113247]
[1738680724755,13.53733853,214.07,213.99,37.81113247]
[1738680725073,13.53733853,214.04,213.89,1.0]
[1738680725378,38.18760247,214.01,213.91,37.81113247]
[1738680725678,37.81113247,213.99,213.91,37.81113247]
[1738680725896,43.03113247,214.02,213.93,37.81113247]
[1738680726193,37.93662247,213.98,213.89,37.81113247]
[1738680726494,37.81113247,213.96,213.87,37.81113247]
[1738680726671,37.81113247,213.96,213.89,37.81113247]
[1738680726876,37.81113247,213.96,213.83,4.6764]
[1738680726877,37.81113247,213.96,213.87,37.81113247]
[1738680727182,13.53733853,213.92,213.85,37.81113247]
[1738680727358,0.12549,213.91,213.83,37.81113247]
[1738680727559,0.12549,213.91,213.79,4.7072]
[1738680727560,0.12549,213.87,213.81,37.81113247]
[1738680727877,13.53733853,213.85,213.79,37.84113247]
[1738680728085,0.12549,213.84,213.79,37.84113247]
[1738680728290,0.25098,213.82,213.79,0.03]
[1738680728959,0.12549,213.82,213.79,0.03]
[1738680729376,37.81113247,213.84,213.79,0.03]
[1738680729582,5.24,213.87,213.83,37.81113247]
[1738680729782,5.24,213.87,213.85,37.81113247]
[1738680730194,118.1,213.98,213.85,37.81113247]
[1738680730195,43.03113247,213.98,213.85,37.81113247]
[1738680730360,20.0,213.95,213.9,37.81113247]
[1738680730555,43.03113247,213.98,213.9,37.81113247]
[1738680730769,37.81113247,214.02,213.94,37.81113247]
[1738680731379,37.81113247,213.97,213.9,37.81113247]
[1738680731661,0.12549,213.91,213.84,37.81113247]
[1738680731863,0.12549,213.89,213.84,37.81113247]
[1738680732083,42.48573247,213.93,213.86,37.81113247]
[1738680732256,37.81113247,213.95,213.88,37.81113247]
[1738680732461,13.91380853,213.92,213.84,37.81113247]
[1738680732695,37.81113247,213.93,213.84,37.81113247]
[1738680732871,118.1,213.99,213.84,37.81113247]
[1738680732872,37.81113247,213.97,213.9,37.81113247]
[1738680733072,4.673,214.0,213.84,37.81113247]
[1738680733073,37.81113247,214.0,213.92,37.81113247]
[1738680733896,4.6709,214.09,213.99,37.81113247]
[1738680734099,0.063,214.1,214.05,37.81113247]
[1738680734487,0.063,214.1,214.09,37.81113247]
[1738680735088,7.21561787,214.23,214.12,20.0]
[1738680735399,7.21561787,214.23,214.19,37.81113247]
[1738680735562,7.21561787,214.23,214.12,20.70027327]
[1738680735563,4.6677,214.24,214.17,37.81113247]
[1738680735764,37.81113247,214.25,214.17,37.81113247]
[1738680736004,37.81113247,214.25,214.08,11.92878]
[1738680736005,13.66282853,214.17,214.08,37.81113247]
[1738680736177,13.41184853,214.17,214.08,37.81113247]
[1738680736366,37.81113247,214.14,214.06,37.81113247]
[1738680736687,118.1,214.19,214.02,37.81113247]
[1738680736688,0.12549,214.08,214.02,37.81113247]
[1738680736892,37.81113247,214.12,214.04,37.81113247]
[1738680737072,37.81113247,214.18,214.08,37.81113247]
[1738680737273,43.01113247,214.16,214.08,37.81113247]
[1738680737490,13.91380853,214.15,214.08,37.81113247]
[1738680737802,13.91380853,214.15,213.96,18.08544853]
[1738680737803,0.50196,214.09,214.02,37.81113247]
[1738680737967,0.12549,214.09,214.02,37.81113247]
[1738680738168,13.91380853,214.09,214.02,37.81113247]
[1738680738893,37.81113247,214.1,214.02,37.81113247]
[1738680739600,13.91380853,214.09,214.0,37.81113247]
[1738680739802,42.48223247,214.08,214.0,37.81113247]
[1738680739968,118.1,214.18,214.06,37.81113247]
[1738680740298,4.6683,214.21,214.13,37.81113247]
[1738680740501,13.91380853,214.18,214.11,37.81113247]
[1738680740665,20.0,214.14,214.09,37.81113247]
[1738680740878,20.0,214.14,213.98,16.3566]
[1738680740879,37.81113247,214.12,214.03,37.81113247]
[1738680741098,37.81113247,214.16,214.07,37.81113247]
[1738680741307,37.81113247,214.2,214.11,37.81113247]
[1738680741502,4.6683,214.21,214.15,37.81113247]
[1738680741807,0.12549,214.17,214.13,37.81113247]
[1738680742318,4.6674,214.25,214.15,37.81113247]
[1738680742608,37.87413247,214.28,214.15,37.81113247]
[1738680742609,0.063,214.28,214.24,37.81113247]
[1738680742813,0.063,214.28,214.27,37.81113247]
[1738680743117,0.063,214.28,214.25,37.81113247]
[1738680743280,0.063,214.28,214.27,37.81113247]
[1738680743484,0.063,214.28,214.27,75.62226494]
[1738680743689,0.063,214.28,214.27,80.28926494]
[1738680744382,0.063,214.28,214.27,37.81113247]
[1738680744784,0.063,214.28,214.27,75.62226494]
[1738680745084,0.063,214.28,214.27,37.81113247]
[1738680745982,0.063,214.3,214.27,37.81113247]
[1738680745983,0.063,214.3,214.29,13.53733853]
[1738680746186,0.063,214.32,214.31,34.53733853]
[1738680746486,0.12549,214.44,214.31,57.81113247]
[1738680746691,37.81113247,214.45,214.36,37.81113247]